fUSD/lending_fUSD_20260516
["ID","MTS","AMOUNT","RATE_DAILY","PERIOD"]
[422389106,1778919532000,-158.21273,0.00041033,30]
[422389121,1778919533000,-539.420893,0.00041062,30]
[422389114,1778919533000,-539.420893,0.00041062,30]
[422389113,1778919533000,-539.420893,0.00041062,30]
[422389116,1778919533000,-539.420893,0.00041062,30]
[422389115,1778919533000,-539.420893,0.00041062,30]
[422389117,1778919533000,-539.420893,0.00041062,30]
[422389118,1778919533000,-539.420893,0.00041062,30]
[422389120,1778919533000,-539.420893,0.00041062,30]
[422389119,1778919533000,-539.420893,0.00041062,30]
[422389122,1778919533000,-539.420893,0.00041062,30]
[422389123,1778919533000,-539.420893,0.00041062,30]
[422389125,1778919533000,-539.420893,0.00041062,30]
[422389133,1778919533000,-212.11276959,0.00041062,120]
[422389130,1778919533000,-539.420887,0.00041062,30]
[422389131,1778919533000,-179.39997897,0.00041062,120]
[422389128,1778919533000,-539.420893,0.00041062,30]
[422389132,1778919533000,-216.98729327,0.00041062,120]
[422389126,1778919533000,-539.420893,0.00041062,30]
[422389127,1778919533000,-539.420893,0.00041062,30]
[422389124,1778919533000,-539.420893,0.00041062,30]
[422389129,1778919533000,-539.420893,0.00041062,30]
[422389142,1778919534000,-925.77503751,0.00041062,120]
[422389135,1778919534000,-473.48673608,0.00041062,120]
[422389134,1778919534000,-225.76901534,0.00041062,120]
[422389137,1778919534000,-436.40283384,0.00041062,120]
[422389138,1778919534000,-2000.0,0.00041062,120]
[422389136,1778919534000,-175.94859843,0.00041062,120]
[422389140,1778919534000,-1830.08120038,0.00041062,120]
[422389139,1778919534000,-297.55096888,0.00041062,120]
[422389141,1778919534000,-495.59196105,0.00041062,120]
[422389143,1778919534000,-150.0,0.00041096,30]
[422389153,1778919534000,-1000.0,0.00041096,60]
[422389145,1778919534000,-350.0,0.00041096,30]
[422389146,1778919534000,-350.0,0.00041096,30]
[422389148,1778919534000,-1000.0,0.00041096,60]
[422389147,1778919534000,-247.0,0.00041096,30]
[422389149,1778919534000,-1000.0,0.00041096,60]
[422389150,1778919534000,-1000.0,0.00041096,60]
[422389152,1778919534000,-1000.0,0.00041096,60]
[422389151,1778919534000,-834.0,0.00041096,120]
[422389154,1778919534000,-1000.0,0.00041096,60]
[422389144,1778919534000,-158.0,0.00041096,30]
[422389163,1778919535000,-151.0,0.00041096,120]
[422389160,1778919535000,-1000.0,0.00041096,60]
[422389161,1778919535000,-1000.0,0.00041096,60]
[422389158,1778919535000,-1000.0,0.00041096,60]
[422389162,1778919535000,-307.0,0.00041096,60]
[422389156,1778919535000,-1000.0,0.00041096,60]
[422389157,1778919535000,-1000.0,0.00041096,60]
[422389155,1778919535000,-1000.0,0.00041096,60]
[422389159,1778919535000,-1000.0,0.00041096,60]
[422389165,1778919535000,-151.0,0.00041096,120]
[422389175,1778919535000,-151.0,0.00041096,120]
[422389166,1778919535000,-151.0,0.00041096,120]
[422389176,1778919535000,-151.0,0.00041096,120]
[422389173,1778919535000,-151.0,0.00041096,120]
[422389174,1778919535000,-151.0,0.00041096,120]
[422389171,1778919535000,-151.0,0.00041096,120]
[422389164,1778919535000,-151.0,0.00041096,120]
[422389169,1778919535000,-151.0,0.00041096,120]
[422389170,1778919535000,-151.0,0.00041096,120]
[422389167,1778919535000,-151.0,0.00041096,120]
[422389168,1778919535000,-151.0,0.00041096,120]
[422389172,1778919535000,-220.572666,0.00041096,120]
[422389184,1778919536000,-200.469084,0.00041096,30]
[422389177,1778919536000,-151.0,0.00041096,120]
[422389178,1778919536000,-245.0,0.00041096,120]
[422389179,1778919536000,-151.0,0.00041096,120]
[422389181,1778919536000,-151.0,0.00041096,30]
[422389180,1778919536000,-236.164242,0.00041096,120]
[422389183,1778919536000,-151.0,0.00041096,30]
[422389182,1778919536000,-151.0,0.00041096,30]
[422389185,1778919536000,-1370.916059,0.00041096,120]
[422389187,1778919536000,-1370.916059,0.00041096,120]
[422389186,1778919536000,-1370.916059,0.00041096,120]
[422389189,1778919536000,-1370.916059,0.00041096,120]
[422389196,1778919536000,-151.0,0.00041096,120]
[422389194,1778919536000,-1370.916059,0.00041096,120]
[422389195,1778919536000,-1370.916059,0.00041096,120]
[422389192,1778919536000,-1370.916059,0.00041096,120]
[422389197,1778919536000,-1370.916059,0.00041096,120]
[422389190,1778919536000,-1370.916059,0.00041096,120]
[422389191,1778919536000,-1370.916059,0.00041096,120]
[422389188,1778919536000,-1370.916059,0.00041096,120]
[422389193,1778919536000,-1370.916059,0.00041096,120]
[422389206,1778919537000,-1370.916059,0.00041096,120]
[422389198,1778919537000,-151.0,0.00041096,120]
[422389199,1778919537000,-1370.916059,0.00041096,120]
[422389200,1778919537000,-151.0,0.00041096,120]
[422389201,1778919537000,-1370.916059,0.00041096,120]
[422389202,1778919537000,-151.0,0.00041096,120]
[422389203,1778919537000,-1370.916059,0.00041096,120]
[422389204,1778919537000,-1370.916059,0.00041096,120]
[422389205,1778919537000,-151.0,0.00041096,120]
[422389207,1778919537000,-151.0,0.00041096,120]
[422389218,1778919537000,-300.0,0.0004115,120]
[422389209,1778919537000,-1370.916059,0.00041096,120]
[422389210,1778919537000,-151.0,0.00041096,120]
[422389211,1778919537000,-1370.916059,0.00041096,120]
[422389212,1778919537000,-238.543201,0.00041096,120]
[422389213,1778919537000,-1370.916068,0.00041096,120]
[422389214,1778919537000,-281.651132,0.00041096,120]
[422389215,1778919537000,-326.05576048,0.0004115,120]
[422389217,1778919537000,-1250.0,0.0004115,120]
[422389216,1778919537000,-269.66979463,0.0004115,120]
[422389208,1778919537000,-151.0,0.00041096,120]
[422389226,1778919538000,-310.55041246,0.000419,120]
[422389225,1778919538000,-1042.73396974,0.0004181,120]
[422389224,1778919538000,-11168.0,0.000417,117]
[422389222,1778919538000,-929.11,0.00041644,30]
[422389228,1778919538000,-310.5504123,0.000419,120]
[422389220,1778919538000,-150.0,0.00041558,120]
[422389221,1778919538000,-150.0,0.00041558,120]
[422389219,1778919538000,-745.18,0.0004125,120]
[422389223,1778919538000,-1450.4,0.00041694,120]
[422389227,1778919538000,-310.5504123,0.000419,120]
[422389231,1778919538000,-310.5504123,0.000419,120]
[422389230,1778919538000,-310.5504123,0.000419,120]
[422389238,1778919538000,-310.5504123,0.000419,120]
[422389237,1778919538000,-310.5504123,0.000419,120]
[422389236,1778919538000,-310.5504123,0.000419,120]
[422389235,1778919538000,-310.5504123,0.000419,120]
[422389229,1778919538000,-310.5504123,0.000419,120]
[422389233,1778919538000,-310.5504123,0.000419,120]
[422389232,1778919538000,-310.5504123,0.000419,120]
[422389239,1778919538000,-310.5504123,0.000419,120]
[422389234,1778919538000,-310.5504123,0.000419,120]
[422389241,1778919539000,-310.5504123,0.000419,120]
[422389240,1778919539000,-310.5504123,0.000419,120]
[422389242,1778919539000,-310.5504123,0.000419,120]
[422389243,1778919539000,-310.5504123,0.000419,120]
[422389245,1778919539000,-310.5504123,0.000419,120]
[422389244,1778919539000,-310.5504123,0.000419,120]
[422389247,1778919539000,-397.93,0.00041999,120]
[422389248,1778919539000,-14914.79,0.00041999,120]
[422389249,1778919539000,-151.0,0.00041999,120]
[422389251,1778919539000,-6282.1509094,0.00041999,120]
[422389246,1778919539000,-500.0,0.00041958,120]
[422389252,1778919539000,-520.0,0.00041999,120]
[422389261,1778919539000,-500.0,0.00041999,120]
[422389250,1778919539000,-200.0,0.00041999,120]
[422389260,1778919539000,-539.24,0.00041999,120]
[422389258,1778919539000,-500.0,0.00041999,120]
[422389257,1778919539000,-200.0,0.00041999,120]
[422389259,1778919539000,-151.0,0.00041999,120]
[422389255,1778919539000,-1030.0,0.00041999,120]
[422389254,1778919539000,-500.0,0.00041999,120]
[422389253,1778919539000,-500.0,0.00041999,120]
[422389256,1778919539000,-206.98580369,0.00041999,120]
[422389270,1778919540000,-1107.63007,0.00041999,120]
[422389262,1778919540000,-518.5,0.00041999,120]
[422389264,1778919540000,-200.0,0.00041999,120]
[422389265,1778919540000,-500.0,0.00041999,120]
[422389263,1778919540000,-1068.11,0.00041999,120]
[422389267,1778919540000,-559.19188,0.00041999,120]
[422389266,1778919540000,-151.0,0.00041999,120]
[422389268,1778919540000,-500.0,0.00041999,120]
[422389271,1778919540000,-200.0,0.00041999,120]
[422389269,1778919540000,-537.6845,0.00041999,120]
[422389273,1778919540000,-151.0,0.00041999,120]
[422389280,1778919540000,-151.0,0.00041999,120]
[422389281,1778919540000,-601.3376128,0.00041999,120]
[422389279,1778919540000,-500.0,0.00041999,120]
[422389278,1778919540000,-200.0,0.00041999,120]
[422389272,1778919540000,-500.0,0.00041999,120]
[422389277,1778919540000,-557.5788265,0.00041999,120]
[422389275,1778919540000,-500.0,0.00041999,120]
[422389282,1778919540000,-500.0,0.00041999,120]
[422389274,1778919540000,-579.88197956,0.00041999,120]
[422389276,1778919540000,-1148.61238259,0.00041999,120]
[422389292,1778919541000,-151.0,0.00041999,120]
[422389284,1778919541000,-578.20924308,0.00041999,120]
[422389286,1778919541000,-200.0,0.00041999,120]
[422389285,1778919541000,-151.0,0.00041999,120]
[422389287,1778919541000,-500.0,0.00041999,120]
[422389288,1778919541000,-151.0,0.00041999,120]
[422389289,1778919541000,-623.58710448,0.00041999,120]
[422389290,1778919541000,-1235.18214925,0.00041999,120]
[422389291,1778919541000,-599.60298507,0.00041999,120]
[422389283,1778919541000,-1191.11104075,0.00041999,120]
[422389293,1778919541000,-200.0,0.00041999,120]
[422389295,1778919541000,-500.0,0.00041999,120]
[422389296,1778919541000,-646.65982734,0.00041999,120]
[422389298,1778919541000,-1280.88388878,0.00041999,120]
[422389297,1778919541000,-151.0,0.00041999,120]
[422389299,1778919541000,-151.0,0.00041999,120]
[422389300,1778919541000,-200.0,0.00041999,120]
[422389301,1778919541000,-621.78829552,0.00041999,120]
[422389302,1778919541000,-500.0,0.00041999,120]
[422389303,1778919541000,-500.0,0.00041999,120]
[422389294,1778919541000,-500.0,0.00041999,120]
[422389311,1778919542000,-500.0,0.00041999,120]
[422389310,1778919542000,-644.79446246,0.00041999,120]
[422389308,1778919542000,-151.0,0.00041999,120]
[422389309,1778919542000,-200.0,0.00041999,120]
[422389312,1778919542000,-500.0,0.00041999,120]
[422389307,1778919542000,-1328.27659266,0.00041999,120]
[422389305,1778919542000,-670.58624095,0.00041999,120]
[422389304,1778919542000,-698.83382885,0.00041999,120]
[422389306,1778919542000,-151.0,0.00041999,120]
[422389313,1778919542000,-695.39793187,0.00041999,120]
[422389320,1778919542000,-500.0,0.00041999,120]
[422389314,1778919542000,-151.0,0.00041999,120]
[422389322,1778919542000,-1428.38747117,0.00041999,120]
[422389323,1778919542000,-500.0,0.00041999,120]
[422389324,1778919542000,-151.0,0.00041999,120]
[422389321,1778919542000,-721.12765535,0.00041999,120]
[422389315,1778919542000,-1377.42282659,0.00041999,120]
[422389318,1778919542000,-668.65185757,0.00041999,120]
[422389317,1778919542000,-200.0,0.00041999,120]
[422389316,1778919542000,-151.0,0.00041999,120]
[422389319,1778919542000,-500.0,0.00041999,120]
[422389333,1778919543000,-200.0,0.00041999,120]
[422389325,1778919543000,-200.0,0.00041999,120]
[422389326,1778919543000,-500.0,0.00041999,120]
[422389327,1778919543000,-500.0,0.00041999,120]
[422389328,1778919543000,-747.8093786,0.00041999,120]
[422389329,1778919543000,-1481.23780761,0.00041999,120]
[422389330,1778919543000,-500.0,0.00041999,120]
[422389331,1778919543000,-151.0,0.00041999,120]
[422389332,1778919543000,-425.87848913,0.00041999,120]
[422389334,1778919543000,-500.0,0.00041999,120]
[422389336,1778919543000,-500.0,0.00041999,120]
[422389335,1778919543000,-775.47832561,0.00041999,120]
[422389346,1778919543000,-500.0,0.00041999,120]
[422389345,1778919543000,-804.17102365,0.00041999,120]
[422389343,1778919543000,-151.0,0.00041999,120]
[422389342,1778919543000,-500.0,0.00041999,120]
[422389344,1778919543000,-200.0,0.00041999,120]
[422389341,1778919543000,-500.0,0.00041999,120]
[422389338,1778919543000,-500.0,0.00041999,120]
[422389339,1778919543000,-200.0,0.00041999,120]
[422389337,1778919543000,-151.0,0.00041999,120]
[422389340,1778919543000,-500.0,0.00041999,120]
[422389355,1778919544000,-500.0,0.00041999,120]
[422389347,1778919544000,-500.0,0.00041999,120]
[422389348,1778919544000,-500.0,0.00041999,120]
[422389349,1778919544000,-151.0,0.00041999,120]
[422389350,1778919544000,-151.0,0.00041999,120]
[422389351,1778919544000,-200.0,0.00041999,120]
[422389352,1778919544000,-833.92535153,0.00041999,120]
[422389353,1778919544000,-500.0,0.00041999,120]
[422389354,1778919544000,-500.0,0.00041999,120]
[422389356,1778919544000,-151.0,0.00041999,120]
[422389367,1778919544000,-671.84450086,0.00041999,120]
[422389358,1778919544000,-200.0,0.00041999,120]
[422389359,1778919544000,-864.78058953,0.00041999,120]
[422389360,1778919544000,-500.0,0.00041999,120]
[422389361,1778919544000,-151.0,0.00041999,120]
[422389362,1778919544000,-151.0,0.00041999,120]
[422389363,1778919544000,-500.0,0.00041999,120]
[422389364,1778919544000,-500.0,0.00041999,120]
[422389365,1778919544000,-200.0,0.00041999,120]
[422389366,1778919544000,-151.0,0.00041999,120]
[422389357,1778919544000,-151.0,0.00041999,120]
[422389376,1778919545000,-500.0,0.00041999,120]
[422389374,1778919545000,-200.0,0.00041999,120]
[422389373,1778919545000,-151.0,0.00041999,120]
[422389375,1778919545000,-151.0,0.00041999,120]
[422389368,1778919545000,-570.21980902,0.00041999,120]
[422389371,1778919545000,-500.0,0.00041999,120]
[422389370,1778919545000,-193.40373632,0.00041999,120]
[422389369,1778919545000,-151.0,0.00041999,120]
[422389372,1778919545000,-500.0,0.00041999,120]
[422389378,1778919545000,-151.0,0.00041999,120]
[422389384,1778919545000,-200.0,0.00041999,120]
[422389380,1778919545000,-151.0,0.00041999,120]
[422389377,1778919545000,-500.0,0.00041999,120]
[422389387,1778919545000,-500.0,0.00041999,120]
[422389388,1778919545000,-500.0,0.00041999,120]
[422389386,1778919545000,-151.0,0.00041999,120]
[422389385,1778919545000,-4268.06997226,0.00041999,120]
[422389383,1778919545000,-151.0,0.00041999,120]
[422389381,1778919545000,-500.0,0.00041999,120]
[422389382,1778919545000,-500.0,0.00041999,120]
[422389379,1778919545000,-200.0,0.00041999,120]
[422389390,1778919546000,-151.0,0.00041999,120]
[422389391,1778919546000,-500.0,0.00041999,120]
[422389392,1778919546000,-500.0,0.00041999,120]
[422389393,1778919546000,-151.0,0.00041999,120]
[422389394,1778919546000,-151.0,0.00041999,120]
[422389395,1778919546000,-500.0,0.00041999,120]
[422389396,1778919546000,-151.0,0.00041999,120]
[422389397,1778919546000,-151.0,0.00041999,120]
[422389398,1778919546000,-440.13154347,0.00041999,120]
[422389389,1778919546000,-151.0,0.00041999,120]
[422389400,1778919546000,-151.0,0.00041999,120]
[422389399,1778919546000,-208.53565056,0.00041999,120]
[422389408,1778919546000,-152.0,0.00041999,120]
[422389407,1778919546000,-1500.0,0.00041999,30]
[422389405,1778919546000,-297.17258581,0.00041999,120]
[422389409,1778919546000,-1555.5,0.00041999,30]
[422389403,1778919546000,-151.0,0.00041999,120]
[422389404,1778919546000,-152.0,0.00041999,120]
[422389401,1778919546000,-151.0,0.00041999,120]
[422389402,1778919546000,-152.0,0.00041999,120]
[422389406,1778919546000,-152.0,0.00041999,120]
[422389417,1778919547000,-1672.7364795,0.00041999,30]
[422389410,1778919547000,-152.0,0.00041999,120]
[422389411,1778919547000,-151.0,0.00041999,120]
[422389413,1778919547000,-1613.0535,0.00041999,30]
[422389412,1778919547000,-151.0,0.00041999,120]
[422389414,1778919547000,-152.0,0.00041999,120]
[422389415,1778919547000,-156.587,0.00041999,120]
[422389416,1778919547000,-170.0,0.00041999,120]
[422389419,1778919547000,-500.0,0.00041999,120]
[422389423,1778919547000,-1734.62772924,0.00041999,30]
[422389420,1778919547000,-299.2548955,0.00041999,120]
[422389422,1778919547000,-176.29,0.00041999,120]
[422389421,1778919547000,-152.0,0.00041999,120]
[422389424,1778919547000,-162.380719,0.00041999,120]
[422389425,1778919547000,-518.5,0.00041999,120]
[422389426,1778919547000,-152.0,0.00041999,120]
[422389429,1778919547000,-164.07935624,0.00041999,120]
[422389428,1778919547000,-168.3888056,0.00041999,120]
[422389418,1778919547000,-156.587,0.00041999,120]
[422389427,1778919547000,-1798.80895522,0.00041999,30]
[422389437,1778919548000,-181.08010149,0.00041999,120]
[422389436,1778919548000,-1934.38338737,0.00041999,30]
[422389435,1778919548000,-152.0,0.00041999,120]
[422389433,1778919548000,-174.61919141,0.00041999,120]
[422389432,1778919548000,-1865.36488657,0.00041999,30]
[422389430,1778919548000,-182.81273,0.00041999,120]
[422389431,1778919548000,-152.0,0.00041999,120]
[422389439,1778919548000,-152.0,0.00041999,120]
[422389434,1778919548000,-189.57680101,0.00041999,120]
[422389440,1778919548000,-2005.9555727,0.00041999,30]
[422389438,1778919548000,-196.59114265,0.00041999,120]
[422389442,1778919548000,-203.86501493,0.00041999,120]
[422389451,1778919548000,-2236.95670848,0.00041999,30]
[422389450,1778919548000,-284.3596407,0.00041999,120]
[422389448,1778919548000,-152.0,0.00041999,120]
[422389449,1778919548000,-201.93286099,0.00041999,120]
[422389441,1778919548000,-187.78006525,0.00041999,120]
[422389446,1778919548000,-211.40802048,0.00041999,120]
[422389445,1778919548000,-194.72792766,0.00041999,120]
[422389444,1778919548000,-2080.17592889,0.00041999,30]
[422389443,1778919548000,-152.0,0.00041999,120]
[422389447,1778919548000,-2157.14243826,0.00041999,30]
[422389462,1778919549000,-270.80144346,0.00041999,120]
[422389453,1778919549000,-152.0,0.00041999,120]
[422389454,1778919549000,-209.40437684,0.00041999,120]
[422389455,1778919549000,-152.0,0.00041999,120]
[422389456,1778919549000,-217.15233878,0.00041999,120]
[422389458,1778919549000,-152.0,0.00041999,120]
[422389457,1778919549000,-2319.72410669,0.00041999,30]
[422389459,1778919549000,-225.18697532,0.00041999,120]
[422389461,1778919549000,-152.0,0.00041999,120]
[422389460,1778919549000,-2405.55389864,0.00041999,30]
[422389463,1778919549000,-2494.55939289,0.00041999,30]
[422389452,1778919549000,-179.95406328,0.00041999,120]
[422389465,1778919549000,-2586.85809042,0.00041999,30]
[422389475,1778919549000,-1302614.87,0.00042,120]
[422389474,1778919549000,-162.0,0.00042,120]
[422389473,1778919549000,-2500.0,0.00042,120]
[422389472,1778919549000,-2991.49051684,0.00041999,30]
[422389471,1778919549000,-2884.75459676,0.00041999,30]
[422389464,1778919549000,-152.0,0.00041999,120]
[422389470,1778919549000,-2781.82699784,0.00041999,30]
[422389468,1778919549000,-2682.57183977,0.00041999,30]
[422389467,1778919549000,-845.79996418,0.00041999,30]
[422389466,1778919549000,-152.0,0.00041999,120]
[422389469,1778919549000,-152.0,0.00041999,120]
[422389486,1778919550000,-10000.0,0.00042,30]
[422389477,1778919550000,-1000.0,0.00042,90]
[422389478,1778919550000,-4170.27,0.00042,120]
[422389480,1778919550000,-184.93536811,0.00042,120]
[422389479,1778919550000,-7116.92,0.00042,120]
[422389481,1778919550000,-100000.0,0.00042,120]
[422389482,1778919550000,-100000.0,0.00042,120]
[422389484,1778919550000,-519999.999999,0.00042,120]
[422389483,1778919550000,-100000.0,0.00042,30]
[422389485,1778919550000,-71690.0,0.00042,31]
[422389476,1778919550000,-1022393.59,0.00042,120]
[422389487,1778919550000,-50000.0,0.00042,120]
[422389489,1778919550000,-1040930.0,0.00042,120]
[422389492,1778919550000,-209153.0,0.00042,120]
[422389490,1778919550000,-207.0,0.00042,120]
[422389491,1778919550000,-1328451.83,0.00042,120]
[422389493,1778919550000,-414.36120068,0.00042,120]
[422389494,1778919550000,-5229.14698025,0.00042,30]
[422389495,1778919550000,-232.2844012,0.00042,120]
[422389497,1778919550000,-833.09086593,0.00042,30]
[422389496,1778919550000,-1000.0,0.00042,120]
[422389498,1778919550000,-177.15570663,0.00042,120]
[422389488,1778919550000,-19807.3303178,0.00042,30]
[422389506,1778919551000,-1000000.0,0.00042,120]
[422389507,1778919551000,-1000000.0,0.00042,120]
[422389505,1778919551000,-836373.52,0.00042,120]
[422389504,1778919551000,-1000000.0,0.00042,120]
[422389499,1778919551000,-193.0,0.00042,120]
[422389502,1778919551000,-985845.57,0.00042,120]
[422389501,1778919551000,-1108.1796141,0.00042,120]
[422389500,1778919551000,-1000.0,0.00042,120]
[422389503,1778919551000,-1000000.0,0.00042,120]
[422389508,1778919551000,-245062.43,0.00042,120]
[422389510,1778919551000,-1000000.0,0.00042,120]
[422389511,1778919551000,-1000000.0,0.00042,120]
[422389520,1778919551000,-500.0,0.00042,120]
[422389519,1778919551000,-991123.21,0.00042,120]
[422389518,1778919551000,-1000000.0,0.00042,120]
[422389516,1778919551000,-195.0,0.00042,120]
[422389509,1778919551000,-1000000.0,0.00042,120]
[422389517,1778919551000,-500.0,0.00042,45]
[422389513,1778919551000,-1000000.0,0.00042,120]
[422389514,1778919551000,-1000000.0,0.00042,120]
[422389512,1778919551000,-1000000.0,0.00042,120]
[422389515,1778919551000,-1000000.0,0.00042,120]
[422389530,1778919552000,-1000.0,0.00042,120]
[422389521,1778919552000,-1000.0,0.00042,120]
[422389524,1778919552000,-1000.0,0.00042,120]
[422389523,1778919552000,-1344.52343505,0.00042,30]
[422389525,1778919552000,-1000.0,0.00042,120]
[422389526,1778919552000,-1000.0,0.00042,120]
[422389527,1778919552000,-1000.0,0.00042,120]
[422389528,1778919552000,-1000.0,0.00042,120]
[422389529,1778919552000,-1000.0,0.00042,120]
[422389531,1778919552000,-1000.0,0.00042,120]
[422389532,1778919552000,-1000.0,0.00042,120]
[422389522,1778919552000,-500.0,0.00042,120]
[422389534,1778919552000,-1033375.0,0.00042,120]
[422389544,1778919552000,-382.31826252,0.00042,120]
[422389542,1778919552000,-42746.75083472,0.00042,30]
[422389541,1778919552000,-1640.42877024,0.00042,120]
[422389540,1778919552000,-8000.0,0.00042,30]
[422389543,1778919552000,-91101.34916207,0.00042,120]
[422389537,1778919552000,-432.38633223,0.00042,31]
[422389536,1778919552000,-1999.30742589,0.00042,120]
[422389538,1778919552000,-707.75413117,0.00042,120]
[422389535,1778919552000,-166.93935939,0.00042,30]
[422389539,1778919552000,-1000.0,0.00042,120]
[422389533,1778919552000,-918447.08,0.00042,120]
[422389551,1778919553000,737.7,9.151e-05,2]
[422389550,1778919553000,737.7,8.796e-05,2]
[422389548,1778919553000,545.28802543,8.441e-05,2]
[422389549,1778919553000,192.41197457,8.441e-05,2]
[422389547,1778919553000,737.7,8.086e-05,2]
[422389546,1778919553000,-824841.95800651,0.00042,120]
[422389545,1778919553000,-1047.51041668,0.00042,120]
[422389552,1778919554000,737.7,9.506e-05,2]
[422389553,1778919554000,737.7,9.861e-05,2]
[422389554,1778919560000,280.44,0.00015,120]
[422389565,1778919590000,-354.71,0.00029173,30]
[422389562,1778919590000,-785.56489598,0.00029096,30]
[422389563,1778919590000,-256.12,0.00029121,30]
[422389561,1778919590000,-256.12,0.00029053,30]
[422389560,1778919590000,-785.56489598,0.00028986,30]
[422389559,1778919590000,-256.12,0.00028986,30]
[422389558,1778919590000,-256.12,0.00028919,30]
[422389557,1778919590000,-256.12,0.00028852,30]
[422389564,1778919590000,-1159.22,0.00029173,30]
[422389574,1778919591000,-1159.22,0.00029211,30]
[422389573,1778919591000,-354.71,0.00029198,30]
[422389571,1778919591000,-1159.22,0.00029198,30]
[422389572,1778919591000,-1516.48,0.00029198,30]
[422389566,1778919591000,-1516.48,0.00029173,30]
[422389569,1778919591000,-354.71,0.00029186,30]
[422389568,1778919591000,-1516.48,0.00029186,30]
[422389567,1778919591000,-1159.22,0.00029186,30]
[422389575,1778919591000,-1516.48,0.00029211,30]
[422389570,1778919591000,-256.12,0.00029188,30]
[422389576,1778919591000,-354.71,0.00029211,30]
[422389577,1778919591000,-1159.22,0.00029224,30]
[422389578,1778919591000,-354.71,0.00029224,30]
[422389587,1778919591000,-785.56489598,0.00030027,30]
[422389585,1778919591000,-785.56489598,0.00029808,30]
[422389586,1778919591000,-785.56489598,0.00029918,30]
[422389584,1778919591000,-785.56489598,0.00029699,30]
[422389588,1778919591000,-785.56489598,0.00030164,30]
[422389583,1778919591000,-785.56489598,0.00029562,30]
[422389580,1778919591000,-785.56489598,0.00029233,30]
[422389581,1778919591000,-785.56489598,0.00029342,30]
[422389579,1778919591000,-1516.48,0.00029224,30]
[422389582,1778919591000,-785.56489598,0.00029452,30]
[422389597,1778919592000,-567.0,0.00032516,30]
[422389589,1778919592000,-785.56489598,0.00030274,30]
[422389590,1778919592000,-567.0,0.00030516,30]
[422389591,1778919592000,-309.19,0.00030694,30]
[422389592,1778919592000,-1271.19,0.00030999,30]
[422389593,1778919592000,-974.64,0.00030999,30]
[422389594,1778919592000,-297.33,0.00030999,30]
[422389595,1778919592000,-567.0,0.00031516,30]
[422389596,1778919592000,-173.65720979,0.00032,120]
[422389599,1778919592000,-974.64,0.00033501,30]
[422389598,1778919592000,-309.19,0.0003325,30]
[422389601,1778919592000,-1271.19,0.00033501,30]
[422389608,1778919592000,-9943.19,0.00036209,30]
[422389607,1778919592000,-1271.19,0.00036003,30]
[422389606,1778919592000,-974.64,0.00036003,30]
[422389605,1778919592000,-297.33,0.00036003,30]
[422389609,1778919592000,-9943.19,0.00037817,30]
[422389603,1778919592000,-3978.0,0.00035,60]
[422389602,1778919592000,-567.0,0.00033516,30]
[422389600,1778919592000,-297.33,0.00033501,30]
[422389604,1778919592000,-309.19,0.00035806,30]
[422389617,1778919593000,-560.88,0.000404,30]
[422389610,1778919593000,-309.19,0.00038362,30]
[422389611,1778919593000,-297.33,0.00038505,30]
[422389612,1778919593000,-974.64,0.00038505,30]